[Event "*** Titled Tuesday Blitz"]
[Site "Chess.com"]
[Date "2018.10.02"]
[Round "1"]
[White "ftorodent"]
[Black "tteshan"]
[Result "1-0"]
[WhiteElo "2530"]
[BlackElo "2030"]
[TimeControl "180+2"]
[EndTime "13:04:01 PDT"]
[Termination "ftorodent won by resignation"]

1. d4 {[%clk 0:03:00.2]} 1... d5 {[%clk 0:03:00.7]} 2. c4 {[%clk 0:03:00.7]}
2... dxc4 {[%clk 0:03:01.6]} 3. Nf3 {[%clk 0:03:01.4]} 3... Nf6 {[%clk
0:03:01.8]} 4. e3 {[%clk 0:03:02]} 4... Bg4 {[%clk 0:03:02.5]} 5. Bxc4 {[%clk
0:03:02.5]} 5... e6 {[%clk 0:03:04]} 6. h3 {[%clk 0:03:03.5]} 6... Bh5 {[%clk
0:03:04.7]} 7. Be2 {[%clk 0:03:04.5]} 7... a6 {[%clk 0:03:03.5]} 8. O-O {[%clk
0:03:05]} 8... Nc6 {[%clk 0:03:03.7]} 9. Nbd2 {[%clk 0:03:06]} 9... Bd6 {[%clk
0:03:01.8]} 10. Nc4 {[%clk 0:03:06.9]} 10... O-O {[%clk 0:03:01]} 11. b3 {[%clk
0:03:07.1]} 11... Ne4 {[%clk 0:02:53]} 12. Bb2 {[%clk 0:03:07.7]} 12... Re8
{[%clk 0:02:41.8]} 13. Rc1 {[%clk 0:03:05.2]} 13... f6 {[%clk 0:02:37.3]} 14.
Nxd6 {[%clk 0:02:54.9]} 14... cxd6 {[%clk 0:02:36.5]} 15. d5 {[%clk 0:02:54.7]}
15... exd5 {[%clk 0:02:26.1]} 16. Qxd5+ {[%clk 0:02:55.3]} 16... Bf7 {[%clk
0:02:27.7]} 17. Qd1 {[%clk 0:02:55]} 17... Ne5 {[%clk 0:02:26.2]} 18. Nd4 {[%clk
0:02:54]} 18... Rc8 {[%clk 0:02:19.1]} 19. Rc2 {[%clk 0:02:47.3]} 19... Rxc2
{[%clk 0:02:18.6]} 20. Qxc2 {[%clk 0:02:45.9]} 20... d5 {[%clk 0:02:13.9]} 21.
Rc1 {[%clk 0:02:46.3]} 21... Qd7 {[%clk 0:02:10.8]} 22. Qc7 {[%clk 0:02:40.1]}
22... Re7 {[%clk 0:01:44.2]} 23. Qxd7 {[%clk 0:02:38]} 23... Nxd7 {[%clk
0:01:44.5]} 24. Rc7 {[%clk 0:02:38]} 24... Nd6 {[%clk 0:01:35]} 25. Ba3 {[%clk
0:02:35.5]} 25... Ne8 {[%clk 0:01:29.2]} 26. Rxb7 {[%clk 0:02:35.8]} 1-0

[Event "*** Titled Tuesday Blitz"]
[Site "Chess.com"]
[Date "2018.10.02"]
[Round "1"]
[White "ViktorMatviishen"]
[Black "BillForster"]
[Result "1-0"]
[WhiteElo "2482"]
[BlackElo "1704"]
[TimeControl "180+2"]
[EndTime "13:04:26 PDT"]
[Termination "ViktorMatviishen won by resignation"]

1. d4 {[%clk 0:03:00.2]} 1... d5 {[%clk 0:02:59.8]} 2. c4 {[%clk 0:03:01.8]}
2... c6 {[%clk 0:03:00.8]} 3. Nf3 {[%clk 0:03:03.3]} 3... Nf6 {[%clk 0:03:01.5]}
4. e3 {[%clk 0:03:04.7]} 4... e6 {[%clk 0:03:00.7]} 5. Nc3 {[%clk 0:03:05.7]}
5... Nbd7 {[%clk 0:03:00.2]} 6. Qc2 {[%clk 0:03:06.4]} 6... Be7 {[%clk
0:02:52.4]} 7. b3 {[%clk 0:03:07.2]} 7... b6 {[%clk 0:02:48.5]} 8. Bb2 {[%clk
0:03:08.3]} 8... Bb7 {[%clk 0:02:49.4]} 9. Bd3 {[%clk 0:03:08.9]} 9... O-O
{[%clk 0:02:43.3]} 10. O-O {[%clk 0:03:09.4]} 10... Rc8 {[%clk 0:02:40.8]} 11.
e4 {[%clk 0:03:08]} 11... dxc4 {[%clk 0:02:32.3]} 12. bxc4 {[%clk 0:03:07.7]}
12... g6 {[%clk 0:02:23.2]} 13. Rad1 {[%clk 0:03:04.9]} 13... c5 {[%clk
0:02:19.8]} 14. d5 {[%clk 0:03:04.9]} 14... exd5 {[%clk 0:02:12.8]} 15. exd5
{[%clk 0:02:57.6]} 15... Bd6 {[%clk 0:01:53.2]} 16. Rfe1 {[%clk 0:02:54.5]}
16... a6 {[%clk 0:01:44.9]} 17. Qd2 {[%clk 0:02:54.5]} 17... Qc7 {[%clk
0:01:42.2]} 18. Qh6 {[%clk 0:02:49.1]} 18... Rfe8 {[%clk 0:01:30.8]} 19. Ne4
{[%clk 0:02:46.9]} 19... Bf8 {[%clk 0:01:24.3]} 20. Qh4 {[%clk 0:02:41.3]} 20...
Nxe4 {[%clk 0:01:19.5]} 21. Bxe4 {[%clk 0:02:37.7]} 21... Bg7 {[%clk 0:01:18.8]}
22. Bxg7 {[%clk 0:02:31.4]} 22... Kxg7 {[%clk 0:01:18.7]} 23. d6 {[%clk
0:02:24]} 23... Qd8 {[%clk 0:01:15.9]} 24. Qxd8 {[%clk 0:02:23.2]} 24... Rcxd8
{[%clk 0:01:10.4]} 25. Bxb7 {[%clk 0:02:23.1]} 1-0

[Event "*** Titled Tuesday Blitz"]
[Site "Chess.com"]
[Date "2018.10.02"]
[Round "1"]
[White "Alopekos"]
[Black "MITerryble"]
[Result "1/2-1/2"]
[WhiteElo "2431"]
[BlackElo "2767"]
[TimeControl "180+2"]
[EndTime "13:04:37 PDT"]
[Termination "Game drawn by repetition"]

1. e4 {[%clk 0:02:58.3]} 1... e6 {[%clk 0:03:00.9]} 2. d4 {[%clk 0:02:59]} 2...
d5 {[%clk 0:03:02.1]} 3. Nc3 {[%clk 0:03:00.5]} 3... Nf6 {[%clk 0:03:02.8]} 4.
e5 {[%clk 0:02:59.1]} 4... Nfd7 {[%clk 0:03:03.3]} 5. Qg4 {[%clk 0:03:00.7]}
5... c5 {[%clk 0:03:04.3]} 6. dxc5 {[%clk 0:03:02.6]} 6... Nc6 {[%clk
0:03:05.2]} 7. Nf3 {[%clk 0:03:03.4]} 7... Ndxe5 {[%clk 0:03:03]} 8. Nxe5 {[%clk
0:03:05.3]} 8... Nxe5 {[%clk 0:03:04.5]} 9. Qg3 {[%clk 0:03:06.9]} 9... f6
{[%clk 0:02:55]} 10. Be3 {[%clk 0:03:04.9]} 10... a6 {[%clk 0:02:50.1]} 11.
O-O-O {[%clk 0:02:58.8]} 11... Nc6 {[%clk 0:02:33.2]} 12. Be2 {[%clk 0:02:27.8]}
12... Bd7 {[%clk 0:02:18.9]} 13. Rxd5 {[%clk 0:01:47.8]} 13... exd5 {[%clk
0:02:00.1]} 14. Bh5+ {[%clk 0:01:40.8]} 14... g6 {[%clk 0:02:01.3]} 15. Bxg6+
{[%clk 0:01:41.9]} 15... hxg6 {[%clk 0:02:03.2]} 16. Qxg6+ {[%clk 0:01:43.4]}
16... Ke7 {[%clk 0:02:04.6]} 17. Nxd5+ {[%clk 0:01:40.3]} 17... Ke6 {[%clk
0:02:05.9]} 18. Nf4+ {[%clk 0:01:18.9]} 18... Ke7 {[%clk 0:02:07.1]} 19. Nd5+
{[%clk 0:01:11.5]} 19... Ke6 {[%clk 0:02:08.2]} 20. Nf4+ {[%clk 0:00:54]} 20...
Ke7 {[%clk 0:02:09.3]} 21. Nd5+ {[%clk 0:00:55.1]} 21... Ke6 {[%clk 0:02:09.5]}
22. Nf4+ {[%clk 0:00:55.7]} 1/2-1/2

[Event "*** Titled Tuesday Blitz"]
[Site "Chess.com"]
[Date "2018.10.02"]
[Round "1"]
[White "hurricane7791"]
[Black "Cryptinz"]
[Result "1-0"]
[WhiteElo "2691"]
[BlackElo "2361"]
[TimeControl "180+2"]
[EndTime "13:04:56 PDT"]
[Termination "hurricane7791 won by resignation"]

1. d4 {[%clk 0:03:01.9]} 1... d5 {[%clk 0:02:59.4]} 2. c4 {[%clk 0:03:03.1]}
2... c6 {[%clk 0:02:59.6]} 3. Nf3 {[%clk 0:03:04.3]} 3... Nf6 {[%clk 0:02:59.8]}
4. Nc3 {[%clk 0:03:05.7]} 4... dxc4 {[%clk 0:03:01.2]} 5. a4 {[%clk 0:03:07.2]}
5... Bf5 {[%clk 0:03:01]} 6. e3 {[%clk 0:03:08.5]} 6... e6 {[%clk 0:03:02.1]} 7.
Bxc4 {[%clk 0:03:10]} 7... Bb4 {[%clk 0:03:03.6]} 8. O-O {[%clk 0:03:11.5]} 8...
O-O {[%clk 0:03:04.7]} 9. Nh4 {[%clk 0:03:13]} 9... Bg4 {[%clk 0:03:04]} 10. f3
{[%clk 0:03:14.1]} 10... Bh5 {[%clk 0:03:04.9]} 11. g4 {[%clk 0:03:15.6]} 11...
Bg6 {[%clk 0:03:05.7]} 12. e4 {[%clk 0:03:13.3]} 12... Nbd7 {[%clk 0:03:04.4]}
13. Be3 {[%clk 0:03:11.8]} 13... c5 {[%clk 0:02:51.7]} 14. Nxg6 {[%clk
0:03:06.6]} 14... hxg6 {[%clk 0:02:51.5]} 15. e5 {[%clk 0:02:36.1]} 15... cxd4
{[%clk 0:02:44]} 16. Bxd4 {[%clk 0:02:38]} 16... Ne8 {[%clk 0:02:35.4]} 17. Ne4
{[%clk 0:02:38.3]} 17... Qc7 {[%clk 0:02:30.5]} 18. Rc1 {[%clk 0:02:39.3]} 18...
Qa5 {[%clk 0:02:10.4]} 19. f4 {[%clk 0:02:34.8]} 19... Nc5 {[%clk 0:02:05.9]}
20. Ng5 {[%clk 0:02:26.9]} 20... Rd8 {[%clk 0:01:57]} 21. Qf3 {[%clk 0:02:24.1]}
1-0

[Event "*** Titled Tuesday Blitz"]
[Site "Chess.com"]
[Date "2018.10.02"]
[Round "1"]
[White "ramses135"]
[Black "m3alam"]
[Result "1-0"]
[WhiteElo "2539"]
[BlackElo "2110"]
[TimeControl "180+2"]
[EndTime "13:05:39 PDT"]
[Termination "ramses135 won by resignation"]

1. e4 {[%clk 0:02:56.5]} 1... c6 {[%clk 0:03:01.7]} 2. d4 {[%clk 0:02:56.4]}
2... d5 {[%clk 0:03:03.5]} 3. Nc3 {[%clk 0:02:58.3]} 3... dxe4 {[%clk
0:03:03.3]} 4. Nxe4 {[%clk 0:03:00.2]} 4... Bf5 {[%clk 0:03:04.8]} 5. Ng3 {[%clk
0:03:01.2]} 5... Bg6 {[%clk 0:03:06.3]} 6. Nf3 {[%clk 0:03:02.9]} 6... Nd7
{[%clk 0:03:07.2]} 7. h4 {[%clk 0:03:04.5]} 7... h6 {[%clk 0:03:07.8]} 8. h5
{[%clk 0:03:06.2]} 8... Bh7 {[%clk 0:03:08.7]} 9. Bd3 {[%clk 0:03:07.9]} 9...
Bxd3 {[%clk 0:03:10]} 10. Qxd3 {[%clk 0:03:09.8]} 10... e6 {[%clk 0:03:11.6]}
11. Bd2 {[%clk 0:03:11.4]} 11... Qc7 {[%clk 0:03:10.3]} 12. O-O-O {[%clk
0:03:13]} 12... O-O-O {[%clk 0:03:11.5]} 13. Ne4 {[%clk 0:03:09.9]} 13... Ngf6
{[%clk 0:03:10.4]} 14. Kb1 {[%clk 0:03:06.1]} 14... Nxe4 {[%clk 0:02:58.2]} 15.
Qxe4 {[%clk 0:03:08]} 15... Nf6 {[%clk 0:02:58.4]} 16. Qe2 {[%clk 0:03:09.6]}
16... c5 {[%clk 0:02:59.5]} 17. g3 {[%clk 0:02:29.4]} 17... cxd4 {[%clk
0:02:56]} 18. Bf4 {[%clk 0:02:29.9]} 18... Bd6 {[%clk 0:02:55.6]} 19. Rxd4
{[%clk 0:02:25.2]} 19... Kb8 {[%clk 0:02:20.4]} 20. Rxd6 {[%clk 0:00:50.5]}
20... Rxd6 {[%clk 0:02:19.9]} 21. Rd1 {[%clk 0:00:49.4]} 21... Nd5 {[%clk
0:02:11.5]} 22. Bxd6 {[%clk 0:00:45.2]} 22... Qxd6 {[%clk 0:02:10.8]} 23. c4
{[%clk 0:00:45.6]} 23... Nc3+ {[%clk 0:01:54]} 24. bxc3 {[%clk 0:00:46]} 24...
Qb6+ {[%clk 0:01:54.5]} 25. Ka1 {[%clk 0:00:44.2]} 25... Qa5 {[%clk 0:01:50.1]}
26. Qe5+ {[%clk 0:00:43.5]} 1-0

[Event "*** Titled Tuesday Blitz"]
[Site "Chess.com"]
[Date "2018.10.02"]
[Round "1"]
[White "2165149677570"]
[Black "maciek_92"]
[Result "0-1"]
[WhiteElo "2317"]
[BlackElo "2618"]
[TimeControl "180+2"]
[EndTime "13:05:50 PDT"]
[Termination "maciek_92 won by resignation"]

1. e4 {[%clk 0:03:01.6]} 1... c5 {[%clk 0:03:01.1]} 2. Nf3 {[%clk 0:03:02.8]}
2... e6 {[%clk 0:03:02.4]} 3. d4 {[%clk 0:03:03.5]} 3... cxd4 {[%clk 0:03:04.3]}
4. Nxd4 {[%clk 0:03:05.3]} 4... Nc6 {[%clk 0:03:05.7]} 5. Nc3 {[%clk 0:03:05]}
5... a6 {[%clk 0:03:04.6]} 6. Be2 {[%clk 0:03:05]} 6... Qc7 {[%clk 0:03:04.9]}
7. O-O {[%clk 0:03:06.5]} 7... Nf6 {[%clk 0:03:06.1]} 8. Be3 {[%clk 0:03:08]}
8... Be7 {[%clk 0:03:04.8]} 9. f4 {[%clk 0:03:08.8]} 9... d6 {[%clk 0:03:04.4]}
10. Bf3 {[%clk 0:03:07.2]} 10... Bd7 {[%clk 0:03:04.2]} 11. Qe1 {[%clk 0:03:01]}
11... Nxd4 {[%clk 0:03:03.7]} 12. Bxd4 {[%clk 0:03:02]} 12... Bc6 {[%clk
0:03:05.3]} 13. Bf2 {[%clk 0:03:00.6]} 13... O-O {[%clk 0:03:02.8]} 14. Rd1
{[%clk 0:03:01.7]} 14... Rac8 {[%clk 0:02:57.2]} 15. g4 {[%clk 0:02:47.6]} 15...
b5 {[%clk 0:02:57.9]} 16. g5 {[%clk 0:02:48.1]} 16... Nd7 {[%clk 0:02:59]} 17.
a3 {[%clk 0:02:45.1]} 17... Qb7 {[%clk 0:02:56]} 18. Qe2 {[%clk 0:02:33.1]}
18... a5 {[%clk 0:02:50]} 19. Nd5 {[%clk 0:02:23]} 19... Bd8 {[%clk 0:02:46.4]}
20. b4 {[%clk 0:02:15.8]} 20... e5 {[%clk 0:02:40.9]} 21. h4 {[%clk 0:02:03.9]}
21... exf4 {[%clk 0:02:39.7]} 22. Nxf4 {[%clk 0:01:57.2]} 22... Ne5 {[%clk
0:02:38.3]} 23. Nd5 {[%clk 0:01:50.8]} 23... axb4 {[%clk 0:02:35.6]} 24. axb4
{[%clk 0:01:50.1]} 24... Nxf3+ {[%clk 0:02:35.3]} 25. Qxf3 {[%clk 0:01:50.6]}
25... Bxd5 {[%clk 0:02:27.1]} 26. Rxd5 {[%clk 0:01:50.4]} 26... Rxc2 {[%clk
0:02:28.5]} 27. Rfd1 {[%clk 0:01:44.9]} 27... Be7 {[%clk 0:02:28.2]} 28. Qd3
{[%clk 0:01:44]} 28... Rc4 {[%clk 0:02:28.1]} 29. Rd4 {[%clk 0:01:36.6]} 29...
Rfc8 {[%clk 0:02:17.3]} 30. Bg3 {[%clk 0:01:36.8]} 30... Rxd4 {[%clk 0:02:16.3]}
31. Qxd4 {[%clk 0:01:37.4]} 31... Rc4 {[%clk 0:02:17.9]} 32. Qd5 {[%clk
0:01:27.1]} 32... Qxd5 {[%clk 0:02:18]} 33. exd5 {[%clk 0:01:20.1]} 33... Rxb4
{[%clk 0:02:15.1]} 34. Re1 {[%clk 0:01:19.8]} 34... Kf8 {[%clk 0:02:16.7]} 35.
Rc1 {[%clk 0:01:21.3]} 35... Rc4 {[%clk 0:02:14.5]} 36. Rb1 {[%clk 0:01:13.1]}
36... Rc5 {[%clk 0:02:15.2]} 37. Ra1 {[%clk 0:01:11.8]} 37... g6 {[%clk
0:02:15]} 38. Ra8+ {[%clk 0:00:58.5]} 38... Kg7 {[%clk 0:02:15.9]} 39. Re8
{[%clk 0:00:59]} 39... Bf8 {[%clk 0:02:16.4]} 40. Rxf8 {[%clk 0:00:59.8]} 40...
Rc1+ {[%clk 0:02:17.3]} 0-1

[Event "*** Titled Tuesday Blitz"]
[Site "Chess.com"]
[Date "2018.10.02"]
[Round "1"]
[White "AndrewDGreen"]
[Black "ENEASZ"]
[Result "0-1"]
[WhiteElo "2243"]
[BlackElo "2566"]
[TimeControl "180+2"]
[EndTime "13:05:51 PDT"]
[Termination "ENEASZ won by resignation"]

1. d4 {[%clk 0:03:00.4]} 1... Nf6 {[%clk 0:03:00.2]} 2. Nf3 {[%clk 0:03:00]}
2... e6 {[%clk 0:02:59.6]} 3. Bf4 {[%clk 0:02:57.4]} 3... b6 {[%clk 0:02:58.5]}
4. e3 {[%clk 0:02:58.1]} 4... Bb7 {[%clk 0:02:59.4]} 5. Nbd2 {[%clk 0:02:58.2]}
5... Be7 {[%clk 0:02:58.5]} 6. h3 {[%clk 0:02:58.9]} 6... d6 {[%clk 0:02:57.4]}
7. Bd3 {[%clk 0:02:53.6]} 7... Nbd7 {[%clk 0:02:57.6]} 8. e4 {[%clk 0:02:49.1]}
8... O-O {[%clk 0:02:56.1]} 9. Qe2 {[%clk 0:02:49.6]} 9... Re8 {[%clk
0:02:51.7]} 10. Bg3 {[%clk 0:02:45.1]} 10... Nh5 {[%clk 0:02:45.5]} 11. Bh2
{[%clk 0:02:45.4]} 11... g6 {[%clk 0:02:46]} 12. O-O {[%clk 0:02:45.1]} 12...
Bf6 {[%clk 0:02:42.8]} 13. c3 {[%clk 0:02:45.3]} 13... e5 {[%clk 0:02:43.7]} 14.
a4 {[%clk 0:02:33.7]} 14... a6 {[%clk 0:02:36.9]} 15. Rfe1 {[%clk 0:02:20.9]}
15... Qe7 {[%clk 0:02:33.9]} 16. b4 {[%clk 0:02:07.2]} 16... Bg7 {[%clk
0:02:22.2]} 17. dxe5 {[%clk 0:02:02.2]} 17... dxe5 {[%clk 0:02:18.5]} 18. Rad1
{[%clk 0:01:48.4]} 18... a5 {[%clk 0:01:56.3]} 19. b5 {[%clk 0:01:40]} 19... Nc5
{[%clk 0:01:55.2]} 20. Bc2 {[%clk 0:01:40.5]} 20... Nf4 {[%clk 0:01:37.8]} 21.
Bxf4 {[%clk 0:01:28.9]} 21... exf4 {[%clk 0:01:39.7]} 22. Qc4 {[%clk 0:01:28]}
22... Qe6 {[%clk 0:01:35.6]} 23. Qxe6 {[%clk 0:01:22.8]} 23... Nxe6 {[%clk
0:01:28.3]} 24. Nb1 {[%clk 0:01:19.1]} 24... Rad8 {[%clk 0:01:23.6]} 25. Bb3
{[%clk 0:01:13.5]} 25... Nc5 {[%clk 0:01:23.2]} 26. Bc2 {[%clk 0:01:14]} 26...
h6 {[%clk 0:01:22.5]} 27. h4 {[%clk 0:01:14]} 27... Kf8 {[%clk 0:01:20.5]} 28.
Kf1 {[%clk 0:01:12.3]} 28... Rxd1 {[%clk 0:01:16.3]} 29. Bxd1 {[%clk 0:01:08.1]}
29... Bxe4 {[%clk 0:01:15.8]} 0-1

[Event "*** Titled Tuesday Blitz"]
[Site "Chess.com"]
[Date "2018.10.02"]
[Round "1"]
[White "Godzillator"]
[Black "Zq1"]
[Result "0-1"]
[WhiteElo "2262"]
[BlackElo "2577"]
[TimeControl "180+2"]
[EndTime "13:05:52 PDT"]
[Termination "Zq1 won by resignation"]

1. d4 {[%clk 0:02:57]} 1... Nf6 {[%clk 0:02:42.1]} 2. c4 {[%clk 0:02:57.7]} 2...
a6 {[%clk 0:02:40.2]} 3. Nc3 {[%clk 0:02:57.9]} 3... c5 {[%clk 0:02:38.7]} 4. d5
{[%clk 0:02:59]} 4... b5 {[%clk 0:02:35.3]} 5. b3 {[%clk 0:02:56.1]} 5... b4
{[%clk 0:02:33.5]} 6. Nb1 {[%clk 0:02:55.9]} 6... g6 {[%clk 0:02:32.4]} 7. Bb2
{[%clk 0:02:56.8]} 7... Bg7 {[%clk 0:02:32.9]} 8. Nd2 {[%clk 0:02:57.2]} 8... d6
{[%clk 0:02:33]} 9. e4 {[%clk 0:02:58.2]} 9... O-O {[%clk 0:02:33.8]} 10. Bd3
{[%clk 0:02:59.1]} 10... a5 {[%clk 0:02:34.6]} 11. f4 {[%clk 0:02:54]} 11... a4
{[%clk 0:02:25]} 12. Rb1 {[%clk 0:02:53.5]} 12... axb3 {[%clk 0:02:23.5]} 13.
axb3 {[%clk 0:02:54.4]} 13... Ra2 {[%clk 0:02:22.7]} 14. Ngf3 {[%clk 0:02:45]}
14... Rxb2 {[%clk 0:02:19.1]} 15. Rxb2 {[%clk 0:02:45.7]} 15... Nxe4 {[%clk
0:02:15.2]} 16. Rc2 {[%clk 0:02:35.2]} 16... Nc3 {[%clk 0:02:05.7]} 17. Qc1
{[%clk 0:02:35.7]} 17... e6 {[%clk 0:02:05.9]} 18. Nb1 {[%clk 0:02:33]} 18...
exd5 {[%clk 0:01:58.3]} 19. cxd5 {[%clk 0:02:29.6]} 19... Re8+ {[%clk
0:01:56.9]} 20. Kf2 {[%clk 0:02:30.3]} 20... Nxd5 {[%clk 0:01:56.5]} 21. Re1
{[%clk 0:02:24.6]} 21... Be6 {[%clk 0:01:55.4]} 22. Bc4 {[%clk 0:02:21.9]} 22...
Nc6 {[%clk 0:01:51.7]} 23. Rce2 {[%clk 0:02:15.7]} 23... Nd4 {[%clk 0:01:42.5]}
24. Nxd4 {[%clk 0:02:16.2]} 24... Bxd4+ {[%clk 0:01:42.4]} 25. Kf1 {[%clk
0:02:16.7]} 25... Qh4 {[%clk 0:01:22.6]} 26. h3 {[%clk 0:01:38.6]} 26... Nxf4
{[%clk 0:01:17.3]} 27. Bxe6 {[%clk 0:01:38.8]} 27... fxe6 {[%clk 0:01:13.7]} 28.
Nd2 {[%clk 0:01:34.1]} 28... Nxe2 {[%clk 0:01:11.9]} 29. Rxe2 {[%clk 0:01:34.5]}
29... Rf8+ {[%clk 0:01:12.7]} 30. Nf3 {[%clk 0:01:33.4]} 30... Rxf3+ {[%clk
0:01:12.4]} 31. gxf3 {[%clk 0:01:34.3]} 31... Qxh3+ {[%clk 0:01:13.3]} 32. Ke1
{[%clk 0:01:35.2]} 32... Bc3+ {[%clk 0:01:11.9]} 33. Kd1 {[%clk 0:01:36]} 33...
Qf1+ {[%clk 0:01:07.5]} 0-1

[Event "*** Titled Tuesday Blitz"]
[Site "Chess.com"]
[Date "2018.10.02"]
[Round "1"]
[White "mjray79"]
[Black "johnathan113"]
[Result "1/2-1/2"]
[WhiteElo "2121"]
[BlackElo "2531"]
[TimeControl "180+2"]
[EndTime "13:05:58 PDT"]
[Termination "Game drawn by repetition"]

1. d4 {[%clk 0:03:00.2]} 1... Nf6 {[%clk 0:03:00.9]} 2. c4 {[%clk 0:02:59.8]}
2... g6 {[%clk 0:03:02.4]} 3. Nc3 {[%clk 0:02:59.5]} 3... Bg7 {[%clk 0:03:04.3]}
4. e4 {[%clk 0:02:57.5]} 4... d6 {[%clk 0:03:05.8]} 5. Nge2 {[%clk 0:02:57.5]}
5... O-O {[%clk 0:03:06.4]} 6. Ng3 {[%clk 0:02:57.2]} 6... e5 {[%clk 0:02:56.7]}
7. d5 {[%clk 0:02:56.3]} 7... h5 {[%clk 0:02:58]} 8. h4 {[%clk 0:02:53.3]} 8...
a5 {[%clk 0:02:45.1]} 9. Be2 {[%clk 0:02:52.9]} 9... Na6 {[%clk 0:02:44.8]} 10.
Bg5 {[%clk 0:02:53]} 10... Nc5 {[%clk 0:02:45]} 11. Bxh5 {[%clk 0:02:52.3]}
11... gxh5 {[%clk 0:01:55.3]} 12. Nxh5 {[%clk 0:02:51.6]} 12... Ncd7 {[%clk
0:01:02.7]} 13. Qf3 {[%clk 0:02:49.6]} 13... c6 {[%clk 0:00:58.6]} 14. g4 {[%clk
0:02:12]} 14... a4 {[%clk 0:00:51.3]} 15. Rg1 {[%clk 0:01:40.8]} 15... Qb6
{[%clk 0:00:36.4]} 16. Bxf6 {[%clk 0:01:16.5]} 16... Nxf6 {[%clk 0:00:37]} 17.
Nxf6+ {[%clk 0:01:17.2]} 17... Bxf6 {[%clk 0:00:38.9]} 18. Qxf6 {[%clk
0:01:17.2]} 18... Qxb2 {[%clk 0:00:39.9]} 19. Qg5+ {[%clk 0:01:16.6]} 19... Kh7
{[%clk 0:00:39]} 20. Qh5+ {[%clk 0:01:15.5]} 20... Kg8 {[%clk 0:00:36.9]} 21.
Qg5+ {[%clk 0:01:16.2]} 21... Kh7 {[%clk 0:00:37.9]} 22. Qh5+ {[%clk 0:01:17]}
22... Kg8 {[%clk 0:00:39.1]} 23. Qg5+ {[%clk 0:01:17.9]} 23... Kh7 {[%clk
0:00:40.3]} 24. Qh5+ {[%clk 0:01:18.9]} 24... Kg8 {[%clk 0:00:41.4]} 25. Qg5+
{[%clk 0:01:19.8]} 25... Kh7 {[%clk 0:00:42.6]} 26. Qh5+ {[%clk 0:01:20.6]}
26... Kg8 {[%clk 0:00:44.1]} 1/2-1/2

[Event "*** Titled Tuesday Blitz"]
[Site "Chess.com"]
[Date "2018.10.02"]
[Round "1"]
[White "murmah2003"]
[Black "FearlessKing64"]
[Result "1-0"]
[WhiteElo "2557"]
[BlackElo "2210"]
[TimeControl "180+2"]
[EndTime "13:06:29 PDT"]
[Termination "murmah2003 won by resignation"]

1. Nf3 {[%clk 0:03:00.2]} 1... Nf6 {[%clk 0:03:00]} 2. c4 {[%clk 0:02:59.9]}
2... c5 {[%clk 0:03:01]} 3. Nc3 {[%clk 0:03:01.4]} 3... d5 {[%clk 0:03:01.5]} 4.
d4 {[%clk 0:02:56.8]} 4... Nc6 {[%clk 0:02:56.4]} 5. g3 {[%clk 0:02:55.5]} 5...
cxd4 {[%clk 0:02:32.9]} 6. Nxd4 {[%clk 0:02:55.3]} 6... e5 {[%clk 0:02:33.8]} 7.
Nxc6 {[%clk 0:02:47.7]} 7... bxc6 {[%clk 0:02:35.7]} 8. cxd5 {[%clk 0:02:48.8]}
8... cxd5 {[%clk 0:02:35.1]} 9. Bg2 {[%clk 0:02:49.9]} 9... Be6 {[%clk
0:02:25.7]} 10. O-O {[%clk 0:02:40.4]} 10... Be7 {[%clk 0:02:25.9]} 11. Bg5
{[%clk 0:02:39.9]} 11... d4 {[%clk 0:02:06.6]} 12. Nb5 {[%clk 0:02:03.6]} 12...
O-O {[%clk 0:01:53.6]} 13. Bxa8 {[%clk 0:02:02.9]} 13... Qxa8 {[%clk 0:01:54.9]}
14. Nc7 {[%clk 0:02:04.4]} 14... Qb7 {[%clk 0:01:47.2]} 15. Nxe6 {[%clk
0:02:03.9]} 15... fxe6 {[%clk 0:01:49.1]} 16. Qb3 {[%clk 0:02:03.1]} 16... Qd7
{[%clk 0:01:49.9]} 17. Bxf6 {[%clk 0:02:00.4]} 17... gxf6 {[%clk 0:01:50.1]} 18.
Rac1 {[%clk 0:02:00.4]} 18... Bd6 {[%clk 0:01:49.5]} 19. Rfd1 {[%clk 0:01:54.8]}
19... Rb8 {[%clk 0:01:27.7]} 20. Qf3 {[%clk 0:01:55.5]} 20... f5 {[%clk
0:01:21.7]} 21. b3 {[%clk 0:01:53.1]} 21... e4 {[%clk 0:01:15.3]} 22. Qh5 {[%clk
0:01:53.6]} 22... Be5 {[%clk 0:01:12.2]} 23. Rc4 {[%clk 0:01:48.5]} 23... Rc8
{[%clk 0:01:05.7]} 24. Qg5+ {[%clk 0:01:45.8]} 24... Kf7 {[%clk 0:00:51.5]} 25.
Qh6 {[%clk 0:01:37.1]} 25... Kg8 {[%clk 0:00:33.7]} 26. Qc1 {[%clk 0:01:31.4]}
26... Rd8 {[%clk 0:00:26]} 27. Rc5 {[%clk 0:01:32.1]} 27... Bf6 {[%clk 0:00:24]}
28. Qc4 {[%clk 0:01:31.6]} 28... Kg7 {[%clk 0:00:18.5]} 29. Rc7 {[%clk
0:01:31.2]} 1-0